[Event "Superbet Blitz Poland 2023"]
[Site "Warsaw"]
[Date "2023.05.24"]
[Round "7"]
[White "Aronian, Levon"]
[Black "Wojtaszek, Radoslaw"]
[Result "1/2-1/2"]
[ECO "B59"]
[WhiteElo "2745"]
[BlackElo "2670"]
[Annotator "TA"]
[PlyCount "98"]
[EventDate "2023.05.24"]
[EventType "tourn"]
[EventCountry "POL"]
[SourceTitle "playchess.com"]
[Source "ChessBase"]
[SourceQuality "1"]
[TimeControl "300+2"]

{[%evp 16,98,0,8,0,3,13,18,22,22,32,20,54,55,56,50,54,21,17,9,8,8,0,12,0,0,0,0,0,-25,45,61,45,42,76,42,57,66,54,46,55,57,41,3,3,0,29,0,0,0,0,-73,0,-6,0,-29,0,0,169,0,117,122,135,0,0,-34,0,0,0,0,0,0,0,0,0,0,69,0,0,0,0,0,0,0,0]} 1. e4 {[%emt 0:00:02]} c5 {[%emt 0:00:01]} 2. Nf3 {[%emt 0:00:01]} d6 {[%emt 0:00:01]} 3. Nc3 {[%emt 0:00:02]} Nf6 {[%emt 0:00:01]} 4. Be2 {[%emt 0:00:01]} Nc6 {[%emt 0:00:02]} 5. d4 {[%emt 0:00:01]} cxd4 {[%emt 0:00:01]} 6. Nxd4 {[%emt 0:00:01]} e5 {[%emt 0:00:01]} 7. Nb3 {[%emt 0:00:01]} Be7 {[%emt 0:00:02]} 8. O-O {[%emt 0:00:03]} O-O {[%emt 0:00:02]} 9. Bf3 {[%emt 0:00:04]} Be6 {[%emt 0:00:01] B59: Classical Sicilian: 6 Be2 e5 7 Nb3.} 10. Nd5 {[%emt 0:00:05]} Bxd5 {[%emt 0:00:12]} 11. exd5 {[%emt 0:00:02]} Nb8 {[%emt 0:00:02]} 12. a4 {[%emt 0:00:23][%cal Ba2a4,Ba4a5][%mdl 32]} Nbd7 {[%emt 0:00:11]} 13. a5 {[%emt 0:00:01]} a6 {[%emt 0:00:01]} 14. c4 {[%emt 0:00:14]} Rc8 {[%emt 0:00:01]} 15. Be2 {[%emt 0:00:02]} Ne8 {[%emt 0:00:18] [#]} 16. Bd2 $146 {[%emt 0:00:13]} ({Predecessor:} 16. Nd2 f5 17. b4 Bf6 18. Ba3 e4 19. Rc1 Be5 20. f4 Bd4+ 21. Kh1 Ba7 22. Nb3 {1-0 Bonatti,W (2255)-Reams,C Massy op 1993 (8)}) 16... Bg5 {[%emt 0:00:10]} 17. Bc3 {[%emt 0:00:05]} f5 {[%emt 0:00:14]} 18. Nd2 {[%emt 0:00:10]} Nef6 {[%emt 0:00:04]} 19. Ra3 {[%emt 0:00:01]} Qe7 {[%emt 0:00:13]} 20. Qb1 {[%emt 0:00:29]} e4 {[%emt 0:00:06]} 21. Nb3 {[%emt 0:00:31][%cal Bd2b3,Bb3d4,Bd4e6][%mdl 32]} f4 {[%emt 0:00:15][%cal Of4f3] Strongly threatening ...f3!} 22. Nd4 {[%emt 0:00:13]} Ne5 {[%emt 0:00:18]} (22... f3 $1 $11 23. gxf3 (23. Nf5 Qe8 $11) 23... Bf4) 23. Ne6 $14 {[%emt 0:01:00] And now Bxe5 would win.} f3 $1 {[%emt 0:00:01]} 24. Bxf3 {[%emt 0:00:01]} (24. Nxg5 fxe2 25. Re1 Nxd5 26. Bxe5 Qxe5 27. Qxe4 Qxe4 28. Nxe4 Rxc4 $15) 24... exf3 {[%emt 0:00:16]} 25. Bxe5 {[%emt 0:00:21]} fxg2 {[%emt 0:00:27]} (25... Rxc4 $2 26. Bxf6 (26. Nxg5 Qxe5 27. Nxf3 Qxd5 $11) (26. Rxf3 dxe5 27. Nxg5 e4 $16) 26... Bxf6 27. Nxf8 (27. gxf3 Rfc8 $14) 27... fxg2 28. Qxh7+ (28. Nxh7 gxf1=N 29. Kxf1 Bh4 $15) 28... Kxf8 29. Rb1 $18 (29. Kxg2 Qe5 $18)) 26. Rd1 {[%emt 0:00:01]} dxe5 {[%emt 0:00:06]} (26... Rxc4 $2 27. Bg3 $18 (27. Nxg5 Qxe5 28. Qd3 Rc5 $17)) 27. Nxg5 {[%emt 0:00:01] aiming for Rg3.} h6 $1 {[%emt 0:01:23]} (27... Rxc4 $2 28. d6 Qd7 29. Qa2 $18) 28. Ne6 {[%emt 0:00:05]} Rf7 {[%emt 0:00:01]} (28... Ng4 $2 29. Rg3 Rxc4 30. Nxf8 (30. Kxg2 Rxf2+ 31. Kh1 Qh4) 30... Qxf8 31. Rxg2 $18) 29. Qg6 {[%emt 0:01:06] Repels Ng4} Rxc4 {[%emt 0:00:05]} 30. Rg3 {[%emt 0:00:01] Dodges Ng4} Ne4 {[%emt 0:00:23]} 31. Rg4 {[%emt 0:00:13] Dancing on a razor blade.} (31. Rxg2 $5 {[%cal Rb2b3]} Qf6 32. d6 $11) 31... Nd6 $1 {[%emt 0:00:36]} (31... Qf6 $2 32. Qxf6 (32. Kxg2 Qf3+ 33. Kg1 Qxd1+ 34. Kg2 Qf3+ 35. Kg1 Rc1#) 32... Rxf6 33. Rxg7+ (33. Rxg2 Rf7 $11) (33. Re1 Nd2 $11) 33... Kh8 34. d6 (34. Rxb7 Nxf2 35. Rd2 Rg4 $11) (34. Rxg2 Rc8 $16) 34... Nxd6 35. Rxd6 $18) 32. Rxg2 {[%emt 0:00:02] Hoping for b3.} Nf5 {[%emt 0:00:08]} 33. Qh5 {[%emt 0:00:10] [#]} (33. Kh1 $11 {keeps the balance.}) 33... Nh4 {[%emt 0:00:06]} (33... Rh4 $1 $17 {[%cal Rh4h5]} 34. Qe2 Nd4 35. Nxd4 exd4) 34. Rg3 $132 {[%emt 0:00:06][%mdl 2048] White is not keeping still} Qf6 {[%emt 0:00:04] ...Rc2 is the strong threat.} 35. Qe2 {[%emt 0:00:09] Repels Rc2} (35. Kh1 $5 {[%cal Rd1g1]} Qf5 36. Rxg7+ (36. Qxh6 Rg4 $11) 36... Rxg7 37. Qe8+ Kh7 38. Nf8+ Kh8 39. Ng6+ {[%mdl 64] Discovered Attack (Double check), Double Attack} Kh7 40. Nf8+ Kh8 41. Ng6+ {[%mdl 64] Discovered Attack (Double check), Double Attack} Kh7 42. Nf8+ $11) 35... Rc8 {[%emt 0:00:10]} (35... Rb4 $5 {[%cal Rh4f5]}) 36. Kh1 {[%emt 0:00:06]} Nf3 $2 {[%emt 0:00:06]} (36... Nf5 $11 {and Black has nothing to worry.} 37. Rf3 Kh7) 37. Qe3 $2 {[%emt 0:00:06]} (37. Nxg7 $18 Rxg7 38. Rxf3 (38. Qxf3 Qxf3+ 39. Rxf3 Rd7 $16)) 37... e4 {[%emt 0:00:03]} 38. Qxe4 $16 {[%emt 0:00:02] Black must now prevent d6.} Re8 {[%emt 0:00:03]} 39. Qe3 {[%emt 0:00:02] White is more active.} (39. Qd3 $16) 39... Ng5 $1 $11 {[%emt 0:00:01][%cal Rg5e6][%mdl 64] [#] Discovered Attack} 40. Qd4 {[%emt 0:00:02]} Nxe6 {[%emt 0:00:02]} ({Much less strong is} 40... Qxf2 41. Qxf2 Rxf2 42. Nxg5 hxg5 43. d6 $14) 41. Qxf6 {[%emt 0:00:01]} Rxf6 {[%emt 0:00:01]} 42. dxe6 {[%emt 0:00:01]} Rexe6 $15 {[%emt 0:00:01][%mdl 4096] Endgame KRR-KRR} 43. Rd7 {[%emt 0:00:01]} Rxf2 {[%emt 0:00:01] ...Re1+ would be deadly.} 44. Rdxg7+ {[%emt 0:00:03]} Kf8 {[%emt 0:00:01]} 45. Rxb7 {[%emt 0:00:01]} Re1+ {[%emt 0:00:02]} 46. Rg1 {[%emt 0:00:01]} Ree2 {[%emt 0:00:01][%csl Ge2,LRb2,LRh2][%cal Rf2h2] The position is equal.} 47. Rg6 {[%emt 0:00:02]} Re1+ {[%emt 0:00:03]} (47... Rxb2 48. Rxb2 Rxb2 49. Rxh6 Rb1+ 50. Kg2 Rb2+ 51. Kg1 Rb1+ 52. Kf2 Rb2+ 53. Kg3 Rb3+ 54. Kf4 Rb4+ 55. Kg3 Rb3+ 56. Kf4 Rb4+ 57. Kf3 Rb3+ 58. Kg4 Rb4+ 59. Kh3 Rb3+ 60. Kg2 Rb2+ 61. Kg3 Rb3+ $16) 48. Rg1 {[%emt 0:00:01]} Ree2 {[%emt 0:00:00][%csl Ge2,LRb2,LRh2][%cal Rf2h2]} 49. Rg6 {[%emt 0:00:01]} Re1+ {[%emt 0:00:02] Weighted Error Value: White=0.23 (precise) /Black=0.20 (precise)} ({Resist} 49... Rxb2 50. Rxb2 Rxb2 51. Rxh6 Rb1+ 52. Kg2 Rb2+ 53. Kg1 Rb1+ 54. Kg2 Rb2+ 55. Kg3 Rb3+ 56. Kh4 Rb4+ 57. Kg5 Rb5+ 58. Kf6 $18) 1/2-1/2

[Event "Superbet Blitz Poland 2023"]
[Site "Warsaw"]
[Date "2023.05.24"]
[Round "7"]
[White "Rapport, Richard"]
[Black "Shevchenko, Kirill"]
[Result "0-1"]
[ECO "A45"]
[WhiteElo "2745"]
[BlackElo "2684"]
[Annotator "TA"]
[PlyCount "82"]
[EventDate "2023.05.24"]
[EventType "tourn"]
[EventCountry "POL"]
[SourceTitle "playchess.com"]
[Source "ChessBase"]
[SourceQuality "1"]
[TimeControl "300+2"]

{[%evp 9,82,-25,-28,-3,-18,-26,0,1,11,14,34,31,38,23,35,20,12,0,0,0,0,0,0,-56,-39,-64,-75,-73,-73,-70,-66,-89,-50,-105,-97,-191,-85,-84,-88,-96,-82,-85,-86,-114,-67,-156,-133,-250,-109,-101,-87,-101,-66,-73,-70,-103,-103,-102,-57,-205,-219,-205,-200,-204,-212,-185,-187,-344,-372,-563,-161,-732,-704,-1328,-1217]} 1. d4 {[%emt 0:00:03]} Nf6 {[%emt 0:00:01]} 2. Bg5 {[%emt 0:00:03]} Ne4 {[%emt 0:00:07]} 3. h4 {[%emt 0:00:01]} c5 {[%emt 0:00:19]} 4. dxc5 {[%emt 0:00:02]} Na6 {[%emt 0:00:07]} 5. Nd2 {[%emt 0:00:01]} Naxc5 {[%emt 0:00:09]} 6. Nxe4 {[%emt 0:00:02] A45: Trompowsky Attack.} Nxe4 {[%emt 0:00:01]} 7. Qd5 {[%emt 0:00:01]} Nxg5 {[%emt 0:00:15]} (7... h6 $5) 8. hxg5 {[%emt 0:00:02] The position is equal.} e6 {[%emt 0:00:19]} 9. Qd2 {[%emt 0:00:02]} b6 {[%emt 0:00:16]} 10. O-O-O {[%emt 0:00:07]} Bb7 {[%emt 0:00:01] [#]} 11. e3 $146 {[%emt 0:00:56] Black should prevent Bb5.} ({Predecessor:} 11. Nf3 Qc7 12. Nd4 a6 13. Rh3 g6 14. Rc3 Qd8 15. Rd3 d5 16. Kb1 Bg7 17. Qb4 {1-0 Rapport,R (2707)-Kokarev,D (2615) Wch Blitz Riadh 2017 (7)}) 11... Qc7 {[%emt 0:00:03]} 12. Rh4 {[%emt 0:00:21]} Be7 {[%emt 0:00:33][%cal Bf8e7,Be7g5,Bg5f6][%mdl 32]} 13. Nf3 {[%emt 0:00:15]} Bxf3 {[%emt 0:00:37]} 14. gxf3 {[%emt 0:00:02]} Bxg5 {[%emt 0:00:01]} 15. Rc4 {[%emt 0:00:46]} Qd8 {[%emt 0:00:10]} 16. Rd4 {[%emt 0:00:23]} (16. f4 $11 Bf6 17. Qd6) 16... d5 $1 $15 {[%emt 0:00:19]} 17. Qb4 {[%emt 0:00:04] White threatens Bb5+ and mate.} Qe7 {[%emt 0:00:13]} 18. Qa4+ {[%emt 0:00:04]} Kf8 {[%emt 0:00:01]} 19. f4 {[%emt 0:00:15]} Bf6 {[%emt 0:00:01]} 20. R4d2 {[%emt 0:00:02]} a5 {[%emt 0:00:36]} 21. a3 {[%emt 0:00:06]} (21. Qc6 $15 Rb8 22. f5) 21... g6 $17 {[%emt 0:00:19]} 22. f5 {[%emt 0:00:01]} exf5 {[%emt 0:00:25]} (22... gxf5 $19 {White must now prevent ...h5.} 23. c4 dxc4 24. Bxc4 Qb7) 23. Rxd5 {[%emt 0:00:01]} Kg7 {[%emt 0:00:01]} 24. Rd7 {[%emt 0:00:03]} Qe5 {[%emt 0:00:01]} 25. Qb3 {[%emt 0:00:03]} Rhf8 {[%emt 0:00:05]} 26. Bc4 {[%emt 0:00:15]} (26. Qxb6 $2 Rab8 27. Qd4 (27. Rb7 $2 Rxb7 28. Qxb7 Rb8 $19 {[%mdl 64] Skewer, Deflection}) 27... Qh2 $19) 26... a4 {[%emt 0:00:00]} ({Black should try} 26... f4 $17 27. exf4 (27. Bxf7 Qxb2+ 28. Qxb2 Bxb2+ 29. Kxb2 Rxf7 $17) (27. Qxb6 Rab8 $17) 27... Qxf4+ 28. Kb1 a4) 27. Qa2 {[%emt 0:00:07]} ({Better is} 27. Qxb6 $15 Rac8 28. Ba6) 27... Rad8 {[%emt 0:00:10]} 28. Bxf7 {[%emt 0:00:02] [#]} (28. Rxd8 $17 Rxd8 29. Rxd8 Bxd8 30. Bxf7) 28... Rxd7 {[%emt 0:00:02]} (28... Qxb2+ $1 $19 29. Qxb2 Bxb2+ 30. Kxb2 Rxd7 {[%mdl 64] Remove Defender} 31. Rxd7 Rxf7) 29. Rxd7 {[%emt 0:00:01] [#]} Qxb2+ $1 {[%emt 0:00:00][%mdl 576] Deflection} 30. Kd1 {[%emt 0:00:05] aiming for Bg8+.} (30. Qxb2 $2 Bxb2+ 31. Kxb2 Rxf7 $19) (30. Kd2 Kh8) 30... Qxa2 {[%emt 0:00:08]} 31. Bxa2+ {[%emt 0:00:02][%mdl 4096] Endgame KRB-KRB} Kh6 {[%emt 0:00:01]} 32. Ke2 {[%emt 0:00:03]} Rc8 {[%emt 0:00:04]} 33. c4 {[%emt 0:00:03]} b5 {[%emt 0:00:02][%cal Bb6b5,Bb5c4,Bc4c3][%mdl 32]} 34. Ra7 {[%emt 0:00:10] Loses the game.} (34. Kd3 $15) 34... bxc4 $19 {[%emt 0:00:04]} 35. Bb1 {[%emt 0:00:01]} c3 {[%emt 0:00:03] ...c2 is the strong threat.} 36. Bc2 {[%emt 0:00:02][%cal Of2f4]} Rd8 {[%emt 0:00:01]} 37. Bd3 {[%emt 0:00:01] [#]} Rb8 $1 {[%emt 0:00:04]} 38. Rxa4 $2 {[%emt 0:00:02]} (38. Bc2) 38... Rb2+ {[%emt 0:00:01]} 39. Kf3 {[%emt 0:00:02]} (39. Ke1 {was forced.} Bd8 40. Ra8) 39... Ra2 $2 {[%emt 0:00:06]} (39... Rd2 40. Bb1 c2 41. Bxc2 Rxc2) 40. e4 $2 {[%emt 0:00:18]} (40. Rc4) 40... Rd2 {[%emt 0:00:02]} ({Worse is} 40... c2 41. Rc4 $17) 41. Ke3 {[%emt 0:00:09] [#]} f4+ $1 {[%emt 0:00:02][%mdl 512] Weighted Error Value: White=0.63/Black=0.27 (precise)} 0-1

[Event "Superbet Blitz Poland 2023"]
[Site "Warsaw"]
[Date "2023.05.24"]
[Round "7"]
[White "Vachier-Lagrave, Maxime"]
[Black "So, Wesley"]
[Result "1/2-1/2"]
[ECO "C67"]
[WhiteElo "2742"]
[BlackElo "2760"]
[Annotator "TA"]
[PlyCount "128"]
[EventDate "2023.05.24"]
[EventType "tourn"]
[EventCountry "POL"]
[SourceTitle "playchess.com"]
[Source "ChessBase"]
[SourceQuality "1"]
[TimeControl "300+2"]

{[%evp 16,128,22,15,26,20,17,17,21,21,13,12,22,12,23,21,28,24,18,23,25,25,16,21,29,14,14,17,6,14,8,6,6,3,3,3,8,8,12,10,8,8,12,12,9,9,8,9,9,2,11,0,35,35,35,35,35,20,31,20,20,0,20,0,31,31,31,31,31,31,31,31,35,35,35,35,35,35,35,35,35,35,35,35,35,35,35,0,0,0,0,0,0,0,0,0,0,0,0,0,0,0,8,0,0,0,0,0,0,0,0,0,0,0,0]} 1. e4 {[%emt 0:00:01]} e5 {[%emt 0:00:01]} 2. Nf3 {[%emt 0:00:01]} Nc6 {[%emt 0:00:00]} 3. Bb5 {[%emt 0:00:01]} Nf6 {[%emt 0:00:01]} 4. O-O {[%emt 0:00:01][%cal Bh1f1,Bf1e1,Be1e5][%mdl 32]} Nxe4 {[%emt 0:00:01]} 5. Re1 {[%emt 0:00:01]} Nd6 {[%emt 0:00:01]} 6. Nxe5 {[%emt 0:00:01]} Be7 {[%emt 0:00:01]} 7. Bf1 {[%emt 0:00:01]} Nxe5 {[%emt 0:00:01]} 8. Rxe5 {[%emt 0:00:02]} O-O {[%emt 0:00:02]} 9. d4 {[%emt 0:00:01]} Bf6 {[%emt 0:00:01] C67: Ruy Lopez: Berlin Defence: 4 0-0 Nxe4.} 10. Re2 {[%emt 0:00:01]} b6 {[%emt 0:00:05]} 11. Re1 {[%emt 0:00:01]} Bb7 {[%emt 0:00:01]} 12. Bf4 {[%emt 0:00:02]} Ne4 {[%emt 0:00:13]} 13. Nd2 {[%emt 0:00:02]} Nxd2 {[%emt 0:00:05]} 14. Qxd2 {[%emt 0:00:02]} d6 {[%emt 0:00:11]} 15. a4 {[%emt 0:00:01]} c5 {[%emt 0:00:11]} 16. c3 {[%emt 0:00:03]} cxd4 {[%emt 0:00:01]} 17. cxd4 {[%emt 0:00:01]} Rc8 {[%emt 0:00:00] [#]} 18. a5 $146 {[%emt 0:00:11]} ({Predecessor:} 18. Ra3 Re8 19. Rae3 Rxe3 20. Rxe3 Qd7 21. b3 {½-½ Vachier Lagrave,M (2747)-Navara,D (2676) Bundesliga 2223 2022 (11.1)}) 18... bxa5 {[%emt 0:00:02]} 19. Be3 {[%emt 0:00:11]} a6 {[%emt 0:00:25]} 20. Rxa5 {[%emt 0:00:19]} Rc2 {[%emt 0:00:18][%mdl 64] Deflection} 21. Qxc2 {[%emt 0:00:19]} Qxa5 {[%emt 0:00:01] [#]} 22. b4 $1 {[%emt 0:00:07]} Qd5 {[%emt 0:00:14]} (22... Qxb4 $2 23. Rb1 Qa5 24. Rxb7 $18) 23. Ra1 {[%emt 0:00:17]} Rc8 {[%emt 0:00:07]} (23... Bxd4 $2 24. Ra5 $18) 24. Qd3 {[%emt 0:00:37]} g6 {[%emt 0:00:11]} 25. Ra5 {[%emt 0:00:04]} Qc6 {[%emt 0:00:04]} 26. d5 {[%emt 0:00:26]} Qc3 {[%emt 0:00:23]} 27. Qxc3 {[%emt 0:00:04]} Bxc3 {[%emt 0:00:01]} 28. Bxa6 {[%emt 0:00:02]} Bxa6 {[%emt 0:00:02]} 29. Rxa6 {[%emt 0:00:01] [#] Threatens to win with Rc6.} Bxb4 $11 {[%emt 0:00:01][%mdl 4096] Endgame KRB-KRB} 30. g4 {[%emt 0:00:06]} h5 {[%emt 0:00:07]} 31. gxh5 {[%emt 0:00:02]} gxh5 {[%emt 0:00:01]} 32. Kg2 {[%emt 0:00:26]} Kg7 {[%emt 0:00:04]} 33. Bf4 {[%emt 0:00:01]} Kf6 {[%emt 0:00:40]} 34. Bxd6 {[%emt 0:00:04]} Bxd6 {[%emt 0:00:01]} 35. Rxd6+ $14 {[%emt 0:00:02] KR-KR} Ke5 {[%emt 0:00:01]} 36. Rd7 {[%emt 0:00:47]} f5 {[%emt 0:00:01]} 37. h3 {[%emt 0:00:15]} Rc3 {[%emt 0:00:10]} 38. Rd8 {[%emt 0:00:03]} (38. Rh7 {simplifies} Kxd5 39. Rxh5 Ke5 40. Rg5) 38... Rd3 {[%emt 0:00:15]} 39. d6 {[%emt 0:00:12]} h4 {[%emt 0:00:48]} 40. d7 {[%emt 0:00:20] White wants to mate with Re8+.} Kf4 $1 {[%emt 0:00:23]} 41. Rh8 {[%emt 0:00:02]} Rxd7 {[%emt 0:00:01]} 42. Rxh4+ {[%emt 0:00:01]} Kg5 {[%emt 0:00:00]} 43. Ra4 {[%emt 0:00:01]} Rd3 {[%emt 0:00:02]} 44. h4+ {[%emt 0:00:08]} Kh5 {[%emt 0:00:02]} 45. f3 {[%emt 0:00:04]} Rd6 {[%emt 0:00:18]} 46. Kg3 {[%emt 0:00:03]} Kg6 {[%emt 0:00:10]} 47. Kf4 {[%emt 0:00:04]} Kf6 {[%emt 0:00:00]} 48. Ra8 {[%emt 0:00:15]} Rd4+ {[%emt 0:00:02]} 49. Kg3 {[%emt 0:00:01]} Kf7 {[%emt 0:00:24]} 50. Ra6 {[%emt 0:00:03]} Rb4 {[%emt 0:00:06]} 51. h5 {[%emt 0:00:03]} Kg7 {[%emt 0:00:04] The position is equal.} 52. Rg6+ {[%emt 0:00:06]} Kf7 {[%emt 0:00:00]} 53. f4 {[%emt 0:00:24]} Ra4 {[%emt 0:00:08]} 54. Rg5 {[%emt 0:00:01]} Kf6 {[%emt 0:00:01]} 55. h6 {[%emt 0:00:01] White threatens h7 and mate.} Ra8 {[%emt 0:00:01]} 56. Kh4 {[%emt 0:00:10]} (56. h7 $5 Rh8 $8 57. Rg8 (57. Rh5 Kg6 $11) 57... Rxh7 58. Rc8 $11) 56... Ra1 {[%emt 0:00:01]} 57. Rg3 {[%emt 0:00:04]} Rh1+ {[%emt 0:00:01]} 58. Rh3 {[%emt 0:00:01]} Rxh3+ {[%emt 0:00:01]} 59. Kxh3 $11 {[%emt 0:00:01] KPP-KP} Kg6 {[%emt 0:00:01]} 60. Kg3 {[%emt 0:00:01]} Kxh6 {[%emt 0:00:01]} 61. Kh3 {[%emt 0:00:00]} Kg6 {[%emt 0:00:02]} 62. Kg3 Kh6 63. Kh3 Kg6 64. Kg3 {[%emt 0:00:03]} Kh6 {Weighted Error Value: White=0.03 (flawless) /Black=0.03 (flawless)} 1/2-1/2

[Event "Superbet Blitz Poland 2023"]
[Site "Warsaw"]
[Date "2023.05.24"]
[Round "7"]
[White "Duda, Jan-Krzysztof"]
[Black "Deac, Bogdan-Daniel"]
[Result "1-0"]
[ECO "C90"]
[WhiteElo "2724"]
[BlackElo "2700"]
[Annotator "TA"]
[PlyCount "67"]
[EventDate "2023.05.24"]
[EventType "tourn"]
[EventCountry "POL"]
[SourceTitle "playchess.com"]
[Source "ChessBase"]
[SourceQuality "1"]
[TimeControl "300+2"]

{[%evp 21,67,17,15,10,20,10,14,0,27,0,0,0,26,12,7,0,0,-14,-11,-7,-10,-16,0,0,0,0,27,40,33,0,33,1,33,0,0,0,25,37,490,429,792,779,877,871,856,843,815,824]} 1. e4 {[%emt 0:00:01]} e5 {[%emt 0:00:02]} 2. Nf3 {[%emt 0:00:02]} Nc6 {[%emt 0:00:01]} 3. Bb5 {[%emt 0:00:01][%cal Bf1b5,Bb5a4,Ba4b3][%mdl 32]} a6 {[%emt 0:00:02]} 4. Ba4 {[%emt 0:00:01]} Nf6 {[%emt 0:00:01]} 5. O-O {[%emt 0:00:04]} Be7 {[%emt 0:00:01]} 6. Re1 {[%emt 0:00:06]} b5 {[%emt 0:00:01]} 7. Bb3 {[%emt 0:00:01]} O-O {[%emt 0:00:02]} 8. a4 {[%emt 0:00:01]} Rb8 {[%emt 0:00:01]} 9. d3 {[%emt 0:00:06]} d6 {[%emt 0:00:04]} 10. c3 {[%emt 0:00:07]} h6 {[%emt 0:00:21]} 11. Nbd2 {[%emt 0:00:04][%cal Bb1d2,Bd2f1,Bf1e3][%mdl 32]} Re8 {[%emt 0:00:16]} 12. Nf1 {[%emt 0:00:22] C90: Closed Ruy Lopez with 7...d6: Early deviations.} Bf8 {[%emt 0:00:04]} 13. h3 {[%emt 0:00:28] [#]} Be6 $146 {[%emt 0:00:07]} ({Predecessor:} 13... b4 14. Ng3 bxc3 15. bxc3 d5 16. Qc2 Na5 17. Ba2 dxe4 18. Nxe4 Nxe4 19. Rxe4 Bd6 {1-0 Tovio,I-Echeverria Acuna,N Cartagena op 2000 (4)}) 14. Bc2 {[%emt 0:00:35] The position is equal.} d5 {[%emt 0:00:01]} 15. exd5 {[%emt 0:00:04]} Bxd5 {[%emt 0:00:03]} 16. Ne3 {[%emt 0:00:05]} Be6 {[%emt 0:00:14]} 17. axb5 {[%emt 0:00:31]} axb5 {[%emt 0:00:01]} 18. Ra6 {[%emt 0:00:01]} Qd7 {[%emt 0:01:29]} 19. Nd2 {[%emt 0:00:13]} Ne7 {[%emt 0:00:36]} 20. Qf3 {[%emt 0:00:21]} Ng6 {[%emt 0:00:51]} 21. Ne4 {[%emt 0:00:06]} Nh7 {[%emt 0:01:00]} 22. Qg3 {[%emt 0:00:19]} Qc8 {[%emt 0:00:07]} 23. Ra7 {[%emt 0:00:12]} Ra8 {[%emt 0:00:11]} 24. Rxa8 {[%emt 0:00:02]} Qxa8 {[%emt 0:00:01]} 25. Ng4 {[%emt 0:00:07]} Bd6 {[%emt 0:00:10]} 26. h4 {[%emt 0:00:31]} Qc8 {[%emt 0:00:02]} 27. Nxh6+ {[%emt 0:00:09]} Kh8 $1 (27... gxh6 $2 28. h5 Kg7 29. hxg6 fxg6 30. f4 $18) 28. h5 $36 {[%emt 0:00:21][%mdl 2048] White has good play.} Nf4 {[%emt 0:00:01]} (28... Ne7 $5 {[%cal Rg7h6]}) 29. d4 {[%emt 0:00:08] dxe5 would be deadly.} Nxh5 $2 {[%emt 0:00:06][%mdl 8192] This costs Black the game.} ({Better is} 29... gxh6 $14 30. dxe5 Nxg2 31. Qxg2 (31. Nxd6 $2 {loses.} cxd6 32. Qxg2 Rg8 $19) 31... Bxe5) 30. Qf3 {[%emt 0:00:03] White is clearly winning.} Nf4 {[%emt 0:00:03]} (30... gxh6 $142 31. Qxh5 Bg4 32. Qxf7 Qd7 33. Nxd6 cxd6) 31. dxe5 $18 {[%emt 0:00:04][%mdl 64] [#] Remove Defender} Bxe5 {[%emt 0:00:02]} 32. Bxf4 {[%emt 0:00:02]} Bxf4 {[%emt 0:00:00]} 33. Qxf4 {[%emt 0:00:03]} gxh6 {[%emt 0:00:01]} 34. Nf6 {[%emt 0:00:05][%mdl 64] Discovered Attack.   Weighted Error Value: White=0.15 (very precise) /Black=0.38} 1-0

[Event "Superbet Blitz Poland 2023"]
[Site "Warsaw"]
[Date "2023.05.24"]
[Round "8"]
[White "Carlsen, Magnus"]
[Black "Aronian, Levon"]
[Result "1-0"]
[ECO "C21"]
[WhiteElo "2853"]
[BlackElo "2745"]
[Annotator "TA"]
[PlyCount "61"]
[EventDate "2023.05.24"]
[EventType "tourn"]
[EventCountry "POL"]
[SourceTitle "playchess.com"]
[Source "ChessBase"]
[SourceQuality "1"]
[TimeControl "300+2"]

{[%evp 9,61,0,0,0,10,3,24,27,54,65,77,83,73,85,96,99,94,102,100,81,82,0,40,45,166,169,158,150,180,143,145,138,134,135,141,139,161,142,151,147,169,159,160,159,190,194,206,222,213,191,240,241,440,429]} 1. e4 {[%emt 0:00:02]} e5 {[%emt 0:00:01]} 2. d4 {[%emt 0:00:01]} exd4 {[%emt 0:00:01]} 3. c3 {[%emt 0:00:02]} d5 {[%emt 0:00:10]} 4. exd5 {[%emt 0:00:02]} Nf6 {[%emt 0:00:04]} 5. Nf3 {[%emt 0:00:27]} Nxd5 {[%emt 0:00:59]} 6. Qxd4 {[%emt 0:00:06] C21: Danish Gambit.} Nc6 {[%emt 0:00:06]} 7. Bb5 {[%emt 0:00:18] [#]} Qe7+ $146 {[%emt 0:00:01]} ({Predecessor:} 7... Be7 8. O-O O-O 9. Qa4 Nb6 10. Qc2 Qd5 11. Bd3 h6 12. Bf4 Bg4 13. Be4 Qh5 {1-0 Anisimov,P (2527)-Martinez Alcantara,J (2620) Titled Tuesday intern op 09th Mar blitz 2021 (10)}) 8. Ne5 $1 {[%emt 0:00:32] White has an edge.} Bd7 {[%emt 0:00:02]} 9. Bxc6 {[%emt 0:00:04]} Bxc6 {[%emt 0:00:28]} 10. O-O {[%emt 0:00:02]} Qe6 {[%emt 0:00:08]} 11. Nxc6 {[%emt 0:00:02]} Qxc6 {[%emt 0:00:26]} 12. Re1+ {[%emt 0:00:02]} Be7 {[%emt 0:00:01]} 13. Qxg7 {[%emt 0:02:20] White is more active.} O-O-O {[%emt 0:00:01]} 14. Qg4+ ({And not} 14. Qxf7 Bc5 15. Nd2 Rhf8 16. Qe6+ Qxe6 17. Rxe6 Nf4 $17) 14... Kb8 {[#]} 15. Qf3 {[%emt 0:00:02]} (15. Nd2 $1 $16) 15... Bc5 {[%emt 0:00:16]} (15... Rd6 $5 {[%cal Rd6f6]}) 16. Nd2 {[%emt 0:00:01][%cal Bb1d2,Bd2b3,Bb3d4,Bd4f3][%mdl 32]} Qf6 {[%emt 0:00:15] This costs Black the game.} (16... Rhe8 $14 17. Rf1 Bb6) 17. Qxf6 $18 {[%emt 0:00:07]} Nxf6 {[%emt 0:00:01]} 18. Nb3 {[%emt 0:00:01]} Bb6 {[%emt 0:00:40]} 19. Be3 {[%emt 0:00:04]} Rhe8 {[%emt 0:00:43]} 20. Bxb6 {[%emt 0:00:01]} axb6 {[%emt 0:00:01]} 21. Nd4 {[%emt 0:00:02]} Ne4 {[%emt 0:00:08]} 22. g3 {[%emt 0:00:10]} Nd6 {[%emt 0:00:10]} 23. Kg2 {[%emt 0:00:21]} c5 {[%emt 0:00:00]} 24. Nf3 {[%emt 0:00:04]} Kc7 {[%emt 0:00:01]} 25. Rxe8 {[%emt 0:00:02]} Rxe8 {[%emt 0:00:01][%mdl 4096] Endgame KRN-KRN} 26. Re1 {[%emt 0:00:03] Dodges Re2} Ra8 {[%emt 0:00:01]} 27. a3 {[%emt 0:00:02]} h6 {[%emt 0:00:25]} 28. Re7+ {[%emt 0:00:05]} Kd8 {[%emt 0:00:02]} 29. Re2 {[%emt 0:00:06]} b5 {[%emt 0:00:11]} (29... Kc7 $142 30. h4 Rg8) 30. Ne5 {[%emt 0:00:09]} Kc7 $2 {[%emt 0:00:02] [#]} (30... Ra6 {was necessary.} 31. h4 f6) 31. Nxf7 $1 {[%emt 0:00:03][%mdl 576] Decoy.   Weighted Error Value: White=0.05 (flawless) /Black=0.30} 1-0